bitfinex/quotes_BTCUSD_20250814
["timestamp","ask_amount","ask_price","bid_price","bid_amount"]
[1755152388607,0.09777191,121390.0,121380.0,1.04508237]
[1755152388813,0.09777191,121390.0,121380.0,0.83865558]
[1755152389582,0.09777191,121390.0,121380.0,0.83965558]
[1755152389783,0.09777191,121390.0,121380.0,0.84177558]
[1755152390389,0.09777191,121390.0,121380.0,0.85091149]
[1755152390590,0.09777191,121390.0,121380.0,0.85107149]
[1755152391210,0.09777191,121390.0,121380.0,0.83900558]
[1755152392229,0.09777191,121390.0,121380.0,0.84198558]
[1755152392425,0.09777191,121390.0,121380.0,0.83896558]
[1755152393608,0.09777191,121390.0,121380.0,0.84194558]
[1755152394029,0.09777191,121390.0,121380.0,0.85086705]
[1755152395078,0.09777191,121390.0,121380.0,1.15098705]
[1755152395237,0.09777191,121390.0,121380.0,1.22471738]
[1755152396245,0.09777191,121390.0,121380.0,1.09679738]
[1755152396467,0.09777191,121390.0,121380.0,1.22225738]
[1755152396679,0.09777191,121390.0,121380.0,1.11957738]
[1755152397046,0.09777191,121390.0,121380.0,0.99113738]
[1755152397239,0.09777191,121390.0,121380.0,1.11957738]
[1755152397434,0.08272325,121390.0,121380.0,1.11957738]
[1755152397640,0.08272325,121390.0,121380.0,0.92213738]
[1755152397821,0.08272325,121390.0,121380.0,0.92511738]
[1755152398391,0.08272325,121390.0,121380.0,0.85138705]
[1755152399568,0.08272325,121390.0,121380.0,0.95449025]
[1755152400093,0.08272325,121390.0,121380.0,0.95151025]
[1755152400579,0.08272325,121390.0,121380.0,0.82307025]
[1755152400834,0.09341457,121390.0,121380.0,0.81202878]
[1755152401041,0.08792325,121390.0,121380.0,0.94038878]
[1755152401277,0.08792325,121390.0,121380.0,0.911209]
[1755152401490,0.08272325,121390.0,121380.0,0.784969]
[1755152401697,0.08272325,121390.0,121380.0,0.92221062]
[1755152402073,0.08272325,121390.0,121380.0,0.91921062]
[1755152402807,0.08272325,121390.0,121380.0,0.92219062]
[1755152402982,0.08272325,121390.0,121380.0,0.79387062]
[1755152403183,0.08272325,121390.0,121380.0,0.9514104]
[1755152403436,0.08272325,121390.0,121380.0,0.9524104]
[1755152403649,0.08272325,121390.0,121380.0,0.9524504]
[1755152403864,0.08272325,121390.0,121380.0,0.8210704]
[1755152404073,0.08272325,121390.0,121380.0,0.9494704]
[1755152404296,0.08272325,121390.0,121380.0,0.9495104]
[1755152404529,0.08792325,121390.0,121380.0,0.93946878]
[1755152405159,0.08792325,121390.0,121380.0,1.04769717]
[1755152405369,0.08792325,121390.0,121380.0,1.21146896]
[1755152405787,0.08792325,121390.0,121380.0,1.21246896]
[1755152405993,0.08792325,121390.0,121380.0,1.20946896]
[1755152406180,0.08792325,121390.0,121380.0,1.20846896]
[1755152406386,0.08792325,121390.0,121380.0,1.20946896]
[1755152406548,0.10340035,121390.0,121380.0,0.91625717]
[1755152406752,0.08792325,121390.0,121380.0,1.04473717]
[1755152406960,0.08792325,121390.0,121380.0,1.20950896]
[1755152407540,0.08483325,121390.0,121380.0,1.21154896]
[1755152407902,0.08483325,121390.0,121380.0,1.21054896]
[1755152408109,0.08793325,121390.0,121380.0,1.20858896]
[1755152408345,0.08893325,121390.0,121380.0,1.20858896]
[1755152409990,0.08893325,121390.0,121380.0,1.10590896]
[1755152410195,0.08893325,121390.0,121380.0,1.10594896]
[1755152412119,0.08893325,121390.0,121380.0,0.90850896]
[1755152413787,0.08893325,121390.0,121380.0,0.90846896]
[1755152414222,0.08893325,121390.0,121380.0,0.61513717]
[1755152414402,0.10451135,121390.0,121380.0,0.27513717]
[1755152414526,0.10451135,121390.0,121380.0,0.40361717]
[1755152414777,0.10451135,121390.0,121380.0,0.20115379]
[1755152414981,0.10451135,121390.0,121380.0,0.62971379]
[1755152416026,0.08893325,121390.0,121380.0,0.62971379]
[1755152416264,0.08893325,121390.0,121380.0,0.50127379]
[1755152416494,0.08893325,121390.0,121380.0,0.62971379]
[1755152417462,0.08893325,121390.0,121380.0,0.30383379]
[1755152417629,0.08893325,121390.0,121380.0,0.62971379]
[1755152417824,0.08893325,121390.0,121380.0,0.50131379]
[1755152418067,0.08893325,121390.0,121380.0,0.62971379]
[1755152419454,0.08893325,121390.0,121380.0,0.30383379]
[1755152419664,0.10539548,121390.0,121380.0,0.62967379]
[1755152420702,0.08893325,121390.0,121380.0,0.62967379]
[1755152420896,0.08893325,121390.0,121380.0,0.50131379]
[1755152421119,0.08893325,121390.0,121380.0,0.62963379]
[1755152422523,0.08583325,121390.0,121380.0,0.79640558]
[1755152423022,0.08893325,121390.0,121380.0,0.50131379]
[1755152423564,0.08893325,121390.0,121380.0,0.62967379]
[1755152423773,0.08893325,121390.0,121380.0,0.79444558]
[1755152423979,0.08893325,121390.0,121380.0,0.79648558]
[1755152425124,0.08893325,121390.0,121380.0,0.63171379]
[1755152425331,0.08583325,121390.0,121380.0,0.63171379]
[1755152426089,0.08372325,121390.0,121380.0,0.99858058]
[1755152426344,0.08372325,121390.0,121380.0,1.20084396]
[1755152426557,0.08372325,121390.0,121380.0,1.12686058]
[1755152426761,0.08372325,121390.0,121380.0,0.99858058]
[1755152426972,0.08372325,121390.0,121380.0,1.12690058]
[1755152427339,0.08372325,121390.0,121380.0,0.89590058]
[1755152427752,0.08272325,121390.0,121380.0,1.02418058]
[1755152429529,0.08272325,121390.0,121380.0,0.69842058]
[1755152429892,0.08272325,121390.0,121380.0,0.82678058]
[1755152430157,0.08272325,121390.0,121380.0,0.92988378]
[1755152430961,0.08272325,121390.0,121380.0,0.80152378]
[1755152431122,0.08272325,121390.0,121380.0,0.92697378]
[1755152431334,0.08272325,121390.0,121380.0,0.82387058]
[1755152431529,0.08272325,121390.0,121380.0,0.69547058]
[1755152431789,0.09617558,121390.0,121380.0,0.82387058]
[1755152432000,0.08480325,121390.0,121380.0,0.76936036]
[1755152432233,0.08272325,121390.0,121380.0,0.89772036]
[1755152432403,0.08272325,121390.0,121380.0,0.77231036]
[1755152432602,0.08272325,121390.0,121380.0,0.90067036]
[1755152433058,0.08272325,121390.0,121380.0,0.82682058]
[1755152433281,0.08272325,121390.0,121380.0,0.69842058]
[1755152433693,0.08272325,121390.0,121380.0,0.82682058]
[1755152433909,0.08272325,121390.0,121380.0,0.92697378]
[1755152434115,0.08272325,121390.0,121380.0,0.82487058]
[1755152434324,0.08272325,121390.0,121380.0,0.69647058]
[1755152434532,0.08480325,121390.0,121380.0,0.89884218]
[1755152434751,0.08480325,121390.0,121380.0,0.89880218]
[1755152434955,0.08272325,121390.0,121380.0,0.89880218]
[1755152435229,0.08272325,121390.0,121380.0,0.99954058]
[1755152435424,0.08272325,121390.0,121380.0,1.23108378]
[1755152435900,0.08272325,121390.0,121380.0,1.10164378]
[1755152436119,0.08272325,121390.0,121380.0,1.23112378]
[1755152436342,0.08272325,121390.0,121380.0,1.00096378]
[1755152436576,0.08272325,121390.0,121380.0,1.12952378]
[1755152436795,0.08272325,121390.0,121380.0,0.80352378]
[1755152437023,0.08272325,121390.0,121380.0,0.93208378]
[1755152438932,0.003,121410.0,121400.0,0.50474464]
[1755152439184,0.003,121410.0,121400.0,0.70934759]
[1755152439436,0.003,121410.0,121400.0,0.71230759]
[1755152439678,0.003,121410.0,121400.0,0.58370759]
[1755152439896,0.003,121410.0,121400.0,0.63845464]
[1755152440532,0.003,121410.0,121400.0,0.71223562]
[1755152441191,0.08779325,121410.0,121400.0,0.58067562]
[1755152441407,0.08779325,121410.0,121400.0,0.70927562]
[1755152441616,0.08779325,121410.0,121400.0,0.63549464]
[1755152441826,0.08779325,121410.0,121400.0,0.50789464]
[1755152442031,0.08779325,121410.0,121400.0,0.63841464]
[1755152442251,0.08572325,121410.0,121400.0,0.63841464]
[1755152442843,0.08779325,121410.0,121400.0,0.63841464]
[1755152443736,0.09104325,121410.0,121400.0,0.63622464]
[1755152444363,0.09104325,121410.0,121400.0,0.29622464]
[1755152445103,0.09104325,121410.0,121400.0,0.59630464]
[1755152445316,0.09104325,121410.0,121400.0,0.46782464]
[1755152445718,0.09104325,121410.0,121400.0,0.59626464]
[1755152446887,0.09104325,121410.0,121400.0,0.46782464]
[1755152447146,0.09104325,121410.0,121400.0,0.43148]
[1755152447487,0.15556312,121410.0,121400.0,0.30308]
[1755152447692,0.15556312,121410.0,121400.0,0.43148]
[1755152447956,0.19961312,121410.0,121400.0,0.43152]
[1755152448160,0.619401,121410.0,121400.0,0.43052]
[1755152448478,0.619401,121410.0,121400.0,0.42852]
[1755152448689,0.620401,121410.0,121400.0,0.42852]
[1755152448883,0.13609325,121410.0,121400.0,0.42852]
[1755152449320,0.13809325,121410.0,121400.0,0.42852]
[1755152450804,0.09404325,121410.0,121400.0,0.42852]
[1755152451011,0.09404325,121410.0,121400.0,0.42848]
[1755152451639,0.09404325,121410.0,121400.0,0.42844]
[1755152451844,0.09404325,121410.0,121400.0,0.30008]
[1755152452260,0.09404325,121410.0,121400.0,0.42844]
[1755152453285,0.09404325,121410.0,121400.0,0.30008]
[1755152453426,0.09404325,121410.0,121400.0,0.4284]
[1755152453633,0.09404325,121410.0,121400.0,0.30008]
[1755152453888,0.09404325,121410.0,121400.0,0.43055]
[1755152454097,0.09079325,121410.0,121400.0,0.43055]
[1755152454503,0.09404325,121410.0,121400.0,0.4284]
[1755152455364,0.09079325,121410.0,121400.0,0.43075]
[1755152455522,0.08872325,121410.0,121400.0,0.46993464]
[1755152456095,0.08872325,121410.0,121400.0,0.49585464]
[1755152456297,0.08872325,121410.0,121400.0,0.56963562]
[1755152457545,0.08672325,121410.0,121400.0,0.56963562]
[1755152457757,0.08772325,121410.0,121400.0,0.56963562]
[1755152457960,0.08672325,121410.0,121400.0,0.56963562]
[1755152458796,0.08672325,121410.0,121400.0,0.24363562]
[1755152459019,0.08672325,121410.0,121400.0,0.37211562]
[1755152459444,0.08672325,121410.0,121400.0,0.24363562]
[1755152459718,0.004,121410.0,121400.0,0.37207562]
[1755152460102,0.004,121410.0,121400.0,0.29829464]
[1755152460515,0.003,121410.0,121400.0,0.37210611]
[1755152461132,0.003,121410.0,121400.0,0.29829464]
[1755152461327,0.003,121410.0,121400.0,0.16985464]
[1755152461862,0.003,121410.0,121400.0,0.29829464]
[1755152462082,0.003,121410.0,121400.0,0.40239784]
[1755152462300,0.003,121410.0,121400.0,0.61395784]
[1755152462655,0.003,121410.0,121400.0,0.74339784]
[1755152462858,0.003,121410.0,121400.0,0.64029464]
[1755152463053,0.003,121410.0,121400.0,0.63829464]
[1755152463282,0.003,121410.0,121400.0,0.51185464]
[1755152463436,0.003,121410.0,121400.0,0.74358161]
[1755152463632,0.003,121410.0,121400.0,0.74406161]
[1755152464464,0.003,121410.0,121400.0,0.61514161]
[1755152464928,0.0009441,121410.0,121400.0,0.64173464]
[1755152465155,0.0009441,121410.0,121400.0,0.81293464]
[1755152465342,0.0009441,121410.0,121400.0,0.94181464]
[1755152465962,0.0009441,121410.0,121400.0,0.51285464]
[1755152466129,0.08898735,121410.0,121400.0,0.46842305]
[1755152466555,0.0009441,121410.0,121400.0,0.44410951]
[1755152466761,0.0009441,121410.0,121400.0,0.83923464]
[1755152467014,0.0009441,121410.0,121400.0,0.71035464]
[1755152467147,0.0009441,121410.0,121400.0,0.51291464]
[1755152467348,0.0009441,121410.0,121400.0,0.64175464]
[1755152468251,0.0009441,121410.0,121400.0,0.61613407]
[1755152468452,0.0009441,121410.0,121400.0,0.74497407]
[1755152468657,0.0009441,121410.0,121400.0,0.74493407]
[1755152469391,0.0009441,121410.0,121400.0,0.61613407]
[1755152469760,0.0009441,121410.0,121400.0,0.74489407]
[1755152470180,0.0009441,121410.0,121400.0,0.61613407]
[1755152470383,0.0009441,121410.0,121400.0,0.74485407]
[1755152470944,0.0009441,121410.0,121400.0,0.61613407]
[1755152471749,0.0009441,121410.0,121400.0,0.74477407]
[1755152473093,0.003,121420.0,121400.0,0.61613407]
[1755152473298,1e-08,121420.0,121410.0,0.24745432]
[1755152473474,1e-08,121420.0,121410.0,0.48448375]
[1755152473707,1e-08,121420.0,121410.0,0.38084375]
[1755152473920,0.00318,121460.0,121450.0,0.16467682]
[1755152474130,0.08790325,121460.0,121450.0,0.29327682]
[1755152474336,0.08790325,121460.0,121450.0,0.16467682]
[1755152474540,0.08790325,121460.0,121450.0,0.29327682]
[1755152475166,0.08790325,121460.0,121450.0,0.59331682]
[1755152476330,0.08790325,121460.0,121450.0,0.59327682]
[1755152476535,0.003,121470.0,121460.0,0.50466326]
[1755152476745,0.003,121470.0,121460.0,0.50767326]
[1755152476971,0.003,121470.0,121460.0,0.63627326]
[1755152477141,0.003,121470.0,121460.0,0.70984187]
[1755152478808,0.003,121470.0,121460.0,0.58124187]
[1755152479022,0.003,121470.0,121460.0,0.70976187]
[1755152479245,1e-08,121470.0,121460.0,0.71396512]
[1755152479506,1e-08,121470.0,121460.0,0.76891651]
[1755152479905,1e-08,121470.0,121460.0,0.64039651]
[1755152480108,1e-08,121470.0,121460.0,0.76887651]
[1755152480360,1e-08,121470.0,121460.0,0.87199765]
[1755152480487,1e-08,121470.0,121460.0,0.74351765]
[1755152480684,1e-08,121470.0,121460.0,0.87199765]
[1755152481511,1e-08,121470.0,121460.0,0.74351765]
[1755152481708,1e-08,121470.0,121460.0,0.87195765]
[1755152482139,1e-08,121470.0,121460.0,0.76883651]
[1755152482289,1e-08,121470.0,121460.0,0.66367293]
[1755152482485,1e-08,121470.0,121460.0,0.79215293]
[1755152482730,0.06684771,121510.0,121480.0,0.17286795]
[1755152482941,0.06684771,121490.0,121480.0,0.17286795]
[1755152483142,0.14957096,121490.0,121480.0,0.30130795]
[1755152483358,0.15275096,121490.0,121480.0,0.17286795]
[1755152483567,0.15275096,121490.0,121480.0,0.30130795]
[1755152484034,0.15475096,121490.0,121480.0,0.30130795]
[1755152484661,0.15475096,121490.0,121480.0,0.17286795]
[1755152484868,0.15475096,121490.0,121480.0,0.30130795]
[1755152485181,0.15475096,121490.0,121480.0,0.60114795]
[1755152486038,0.08790325,121490.0,121480.0,0.60110795]
[1755152486664,0.08790325,121490.0,121480.0,0.60114795]
[1755152486836,0.08790325,121490.0,121480.0,0.47278795]
[1755152487017,0.08990325,121490.0,121480.0,0.60110795]
[1755152487515,0.08990325,121490.0,121480.0,0.27546795]
[1755152487853,0.08990325,121490.0,121480.0,0.60110795]
[1755152488538,0.08990325,121490.0,121480.0,0.60106795]
[1755152488741,0.08990325,121490.0,121480.0,0.47278795]
[1755152488915,0.08990325,121490.0,121480.0,0.60106795]
[1755152489324,0.08990325,121490.0,121480.0,0.47278795]
[1755152489543,0.08990325,121490.0,121480.0,0.60102795]
[1755152491131,0.08990325,121490.0,121480.0,0.60098795]
[1755152492489,0.20222096,121490.0,121450.0,0.25479159]
[1755152492689,0.13137325,121480.0,121460.0,0.12816]
[1755152492997,0.00518,121470.0,121460.0,0.16466326]
[1755152493200,0.10290448,121470.0,121460.0,0.29282326]
[1755152493398,0.10290448,121470.0,121450.0,0.17290903]
[1755152493602,0.01700123,121470.0,121460.0,0.12816]
[1755152493806,0.09972448,121470.0,121460.0,0.12816]
[1755152494222,0.10290575,121470.0,121460.0,0.12816]
[1755152494481,0.10290575,121470.0,121460.0,0.29282326]
[1755152495053,0.10290575,121470.0,121460.0,0.59274326]
[1755152495656,0.10690575,121470.0,121460.0,0.59274326]
[1755152495824,0.10690575,121470.0,121460.0,0.46458326]
[1755152496031,0.10690575,121470.0,121460.0,0.59266326]
[1755152496643,0.10372575,121470.0,121460.0,0.59463326]
[1755152497477,0.10372575,121470.0,121460.0,0.16663326]
[1755152497675,0.10172575,121470.0,121460.0,0.36395326]
[1755152497882,0.10172575,121470.0,121460.0,0.29467326]
[1755152498104,0.10172575,121470.0,121460.0,0.16966326]
[1755152498483,0.10172575,121470.0,121460.0,0.29766326]
[1755152499088,0.10379575,121470.0,121460.0,0.29266326]
[1755152499319,0.10474575,121470.0,121460.0,0.29266326]
[1755152500767,0.10274575,121470.0,121460.0,0.29266326]
[1755152500979,0.10274575,121470.0,121460.0,0.16466326]
[1755152501191,0.10374575,121470.0,121460.0,0.128]
[1755152501619,0.10674575,121470.0,121460.0,0.128]
[1755152501833,0.10374575,121470.0,121460.0,0.128]
[1755152502046,0.10374575,121470.0,121460.0,0.12796]
[1755152502275,0.2112411,121470.0,121440.0,0.17588268]
[1755152502447,0.08272325,121460.0,121440.0,0.17588268]
[1755152502701,0.09772575,121460.0,121440.0,0.17588268]
[1755152502971,0.00502,121450.0,121440.0,0.17588268]
[1755152503136,0.00502,121450.0,121440.0,0.30384268]
[1755152503137,0.10274575,121450.0,121440.0,0.30384268]
[1755152503795,0.10274575,121450.0,121440.0,0.17588268]
[1755152504002,0.10274575,121450.0,121440.0,0.30380268]
[1755152504207,0.10274575,121450.0,121440.0,0.30480268]
[1755152504419,0.10274575,121450.0,121440.0,0.17688268]
[1755152504628,0.10274575,121450.0,121440.0,0.13088]
[1755152505039,0.10274575,121450.0,121440.0,0.4318]
[1755152505634,0.10274575,121450.0,121440.0,0.43176]
[1755152505828,0.10274575,121450.0,121440.0,0.30392]
[1755152506031,0.10274575,121450.0,121440.0,0.43176]
[1755152507002,0.10279279,121450.0,121440.0,0.43176]
[1755152507434,0.10279279,121450.0,121440.0,0.43076]
[1755152507819,0.10379279,121450.0,121440.0,0.43076]
[1755152507994,0.10579279,121450.0,121440.0,0.43076]
[1755152508212,0.10579279,121450.0,121440.0,0.30292]
[1755152508424,0.10579279,121450.0,121440.0,0.43068]
[1755152508608,0.10579279,121450.0,121440.0,0.43072]
[1755152508609,0.70363825,121450.0,121440.0,0.43072]
[1755152509206,0.70363825,121450.0,121440.0,0.30296]
[1755152509436,0.77300208,121450.0,121440.0,0.43072]
[1755152509875,0.77100208,121450.0,121440.0,0.43072]
[1755152510284,0.77100208,121450.0,121440.0,0.1056]
[1755152510434,0.77100208,121450.0,121440.0,0.43072]
[1755152510852,0.77300208,121450.0,121440.0,0.43072]
[1755152511533,0.77300208,121450.0,121440.0,0.30296]
[1755152511681,0.77300208,121450.0,121440.0,0.1056]
[1755152511881,0.77300208,121450.0,121440.0,0.43064]
[1755152512181,0.77500208,121450.0,121440.0,0.43064]
[1755152512386,0.70463825,121450.0,121440.0,0.1056]
[1755152512607,0.63779054,121450.0,121440.0,0.43064]
[1755152512821,0.6377728,121450.0,121440.0,0.43064]
[1755152512986,0.67531505,121450.0,121440.0,0.43064]
[1755152514236,0.74611496,121450.0,121440.0,0.43064]
[1755152514503,0.74611496,121450.0,121440.0,0.1056]
[1755152514709,0.67531505,121450.0,121440.0,0.43056]
[1755152515787,0.67531208,121450.0,121440.0,0.43056]
[1755152517421,0.19100433,121450.0,121440.0,0.43056]
[1755152517584,0.67531208,121450.0,121440.0,0.30296]
[1755152517804,0.67531208,121450.0,121440.0,0.43048]
[1755152517991,0.74611169,121450.0,121440.0,0.43048]
[1755152518175,0.74611169,121450.0,121440.0,0.30296]
[1755152518382,1.08611169,121450.0,121440.0,0.43052]
[1755152518587,1.08611354,121450.0,121440.0,0.43052]
[1755152521087,1.08611354,121450.0,121440.0,0.30296]
[1755152521415,0.60180579,121450.0,121440.0,0.43052]
[1755152521622,0.48431618,121450.0,121440.0,0.30231024]
[1755152521832,0.48431618,121450.0,121440.0,0.42987024]
[1755152522262,0.48431618,121450.0,121440.0,0.30231024]
[1755152522477,0.48431618,121450.0,121440.0,0.42987024]
[1755152522919,0.99563713,121450.0,121440.0,0.42987024]
[1755152523801,0.51132938,121450.0,121440.0,0.42987024]
[1755152524226,0.99563713,121450.0,121440.0,0.42987024]
[1755152525898,0.25964976,121430.0,121410.0,0.00303]
[1755152526086,0.34237301,121420.0,121410.0,0.00303]
[1755152526273,0.35740369,121420.0,121410.0,0.30206]
[1755152526679,0.35742494,121420.0,121410.0,0.30206]
[1755152527082,0.35742494,121420.0,121410.0,0.42962]
[1755152527329,0.35742494,121420.0,121410.0,0.43062]
[1755152527747,0.35742494,121420.0,121410.0,0.42962]
[1755152527962,0.09777518,121420.0,121410.0,0.43062]
[1755152528182,0.09777518,121420.0,121410.0,0.43262]
[1755152529130,0.11578804,121420.0,121410.0,0.43262]
[1755152530121,0.11793804,121420.0,121410.0,0.43262]
[1755152530990,0.11793804,121420.0,121410.0,0.43162]
[1755152531202,0.60543579,121420.0,121410.0,0.4296]
[1755152531403,0.60543579,121420.0,121410.0,0.4276]
[1755152533122,0.60543579,121420.0,121410.0,0.4286]
[1755152533685,0.58742293,121420.0,121410.0,0.4286]
[1755152534330,0.10311518,121420.0,121410.0,0.4286]
[1755152536224,0.58742293,121420.0,121410.0,0.4286]
[1755152536429,0.10311518,121420.0,121410.0,0.4286]
[1755152536634,0.58742293,121420.0,121410.0,0.4286]
[1755152536964,0.61508759,121420.0,121410.0,0.4286]
[1755152537462,0.61508759,121420.0,121410.0,0.30008]
[1755152537854,0.13077984,121420.0,121410.0,0.30008]
[1755152538048,0.10311518,121420.0,121410.0,0.30008]
[1755152538697,0.59993303,121420.0,121410.0,0.42764]
[1755152539979,0.10311518,121420.0,121410.0,0.42764]
[1755152540194,0.59993303,121420.0,121410.0,0.42764]
[1755152541559,0.59993303,121420.0,121410.0,0.30008]
[1755152541753,1.02241746,121420.0,121410.0,0.42764]
[1755152543630,1.02341746,121420.0,121410.0,0.42764]
[1755152544048,1.02241746,121420.0,121410.0,0.42764]
[1755152544484,1.02441746,121420.0,121410.0,0.42764]
[1755152545659,1.00936553,121420.0,121410.0,0.42764]
[1755152545885,1.52227731,121420.0,121410.0,0.30008]
[1755152546104,1.56688683,121420.0,121410.0,0.30008]
[1755152546320,1.73160433,121420.0,121410.0,0.42764]
[1755152546498,1.73138609,121420.0,121410.0,0.30008]
[1755152546712,1.59066859,121420.0,121410.0,0.30008]
[1755152546917,1.09385074,121420.0,121410.0,0.325]
[1755152547131,1.09585074,121420.0,121410.0,0.325]
[1755152547320,1.09385074,121420.0,121390.0,0.003]
[1755152547496,0.51133788,121420.0,121410.0,0.19744]
[1755152547700,1.20277863,121420.0,121410.0,0.19744]
[1755152548084,1.04125113,121420.0,121410.0,0.19744]
[1755152548492,1.04125113,121420.0,121410.0,0.325]
[1755152548694,2.19960433,121420.0,121410.0,0.325]
[1755152548937,2.19760433,121420.0,121410.0,0.325]
[1755152549720,2.22314591,121420.0,121410.0,0.325]
[1755152550265,2.22414591,121420.0,121410.0,0.19744]
[1755152550389,2.22414591,121420.0,121410.0,0.325]
[1755152550605,2.24914591,121420.0,121410.0,0.325]
[1755152550812,2.24614591,121420.0,121410.0,0.325]
[1755152551045,2.25314591,121420.0,121410.0,0.325]
[1755152551420,0.18973506,121410.0,121390.0,0.003]
[1755152551622,1.41850895,121400.0,121390.0,0.003]
[1755152551868,1.4367924,121400.0,121390.0,0.20048]
[1755152552735,1.5064024,121400.0,121390.0,0.20048]
[1755152552938,1.5064024,121400.0,121390.0,0.32804]
[1755152553391,1.5074024,121400.0,121390.0,0.32804]
[1755152553611,1.54527683,121400.0,121390.0,0.20048]
[1755152553792,1.54427683,121400.0,121390.0,0.32804]
[1755152553994,1.58051724,121400.0,121390.0,0.20048]
[1755152554226,1.58351724,121400.0,121390.0,0.32804]
[1755152554438,1.06169939,121400.0,121390.0,0.20248]
[1755152554658,1.05850939,121400.0,121390.0,0.33006]
[1755152554860,0.47705711,121400.0,121390.0,0.2025]
[1755152555079,0.97387496,121400.0,121390.0,0.3301]
[1755152555287,1.55417724,121400.0,121390.0,0.3301]
[1755152555498,1.55532724,121400.0,121390.0,0.3301]
[1755152556257,1.55232724,121400.0,121390.0,0.3301]
[1755152556499,1.55332724,121400.0,121390.0,0.3301]
[1755152557128,1.55646724,121400.0,121390.0,0.32808]
[1755152557325,1.55646724,121400.0,121390.0,0.20048]
[1755152557326,2.14727667,121400.0,121390.0,0.20048]
[1755152557536,1.62491724,121400.0,121390.0,0.20048]
[1755152557739,0.56283154,121400.0,121390.0,0.32504]
[1755152557949,1.55646724,121400.0,121390.0,0.19748]
[1755152558106,1.55646724,121400.0,121390.0,0.32504]
[1755152558720,1.55646724,121400.0,121390.0,0.32904]
[1755152559768,1.72121188,121400.0,121390.0,0.32904]
[1755152559942,1.78966188,121400.0,121390.0,0.20148]
[1755152560136,1.78966188,121400.0,121390.0,0.32904]
[1755152561200,1.78966188,121400.0,121390.0,0.20148]
[1755152561421,2.58147973,121400.0,121390.0,0.32904]
[1755152561628,0.18975821,121390.0,121380.0,0.29392591]
[1755152561830,1.79764275,121390.0,121380.0,0.49144591]
[1755152562044,1.77578275,121390.0,121380.0,0.49144591]
[1755152562270,1.80078275,121390.0,121380.0,0.49144591]
[1755152562472,1.2789649,121390.0,121380.0,0.49144591]
[1755152562674,1.3039649,121390.0,121380.0,0.61900591]
[1755152562903,1.3059649,121390.0,121380.0,0.61900591]
[1755152563112,1.07435898,121390.0,121380.0,0.61900591]
[1755152563750,1.07435898,121390.0,121380.0,0.49144591]
[1755152564187,1.04935898,121390.0,121380.0,0.61904591]
[1755152564596,1.02435898,121390.0,121380.0,0.61904591]
[1755152565022,1.02435898,121390.0,121380.0,0.49144591]
[1755152565230,1.18911719,121390.0,121380.0,0.61904591]
[1755152565570,1.71093504,121390.0,121380.0,0.49144591]
[1755152565773,1.71093504,121390.0,121380.0,0.61904591]
[1755152566431,1.71093504,121390.0,121380.0,0.13340834]
[1755152566432,1.95820433,121390.0,121380.0,0.13340834]
[1755152566646,0.55477179,121380.0,121370.0,0.20120333]
[1755152566864,1.8029402,121380.0,121370.0,0.32880333]
[1755152567073,0.55478536,121370.0,121360.0,0.003]
[1755152567287,0.55478536,121370.0,121360.0,0.20052]
[1755152567288,2.19174561,121370.0,121360.0,0.20052]
[1755152567497,0.55479894,121360.0,121350.0,0.003]
[1755152567675,2.23079362,121360.0,121350.0,0.20052]
[1755152567936,2.32244395,121360.0,121350.0,0.20052]
[1755152568144,2.2241803,121360.0,121350.0,0.20052]
[1755152568335,1.77736245,121360.0,121350.0,0.32812]
[1755152568749,1.75588501,121360.0,121350.0,0.32812]
[1755152568955,1.80414866,121360.0,121350.0,0.32812]
[1755152569158,0.39,121340.0,121310.0,0.13484201]
[1755152569367,1.04027659,121340.0,121330.0,0.33133569]
[1755152569578,1.01755452,121340.0,121330.0,0.20373569]
[1755152569792,1.01755452,121340.0,121330.0,0.33133569]
[1755152570012,1.04255452,121340.0,121330.0,0.33133569]
[1755152570218,1.06947478,121340.0,121330.0,0.33133569]
[1755152570406,1.23430088,121340.0,121330.0,0.20373569]
[1755152570617,1.2586421,121340.0,121330.0,0.33133569]
[1755152571152,1.26711797,121340.0,121330.0,0.20373569]
[1755152571350,1.27011797,121340.0,121330.0,0.33133569]
[1755152571576,1.27411797,121340.0,121330.0,0.33133569]
[1755152571974,0.11177208,121300.0,121290.0,0.00599]
[1755152572187,0.59500972,121300.0,121290.0,0.20271]
[1755152572482,1.42632885,121300.0,121290.0,0.20056]
[1755152572704,1.42632885,121300.0,121290.0,0.32816]
[1755152572836,1.42318885,121300.0,121290.0,0.33031]
[1755152573261,0.97437991,121300.0,121290.0,0.33031]
[1755152573466,1.46359904,121300.0,121290.0,0.20056]
[1755152573667,1.46359904,121300.0,121290.0,0.33135]
[1755152574256,1.46045904,121300.0,121290.0,0.33135]
[1755152574940,0.97227991,121300.0,121290.0,0.33135]
[1755152575499,0.97227991,121300.0,121290.0,0.33131]
[1755152576509,0.97227991,121300.0,121290.0,0.20371]
[1755152576510,1.46045904,121300.0,121290.0,0.20371]
[1755152576715,1.46353265,121300.0,121290.0,0.3292]
[1755152576922,1.46353265,121300.0,121290.0,0.20156]
[1755152577116,1.46353265,121300.0,121290.0,0.3292]
[1755152577318,1.46353265,121300.0,121290.0,0.33135]
[1755152577546,0.48295718,121300.0,121290.0,0.19764]
[1755152577719,0.62103631,121300.0,121290.0,0.19764]
[1755152577926,0.62103631,121300.0,121290.0,0.32528]
[1755152578338,0.62103631,121300.0,121290.0,0.19764]
[1755152578729,0.62417631,121300.0,121290.0,0.32528]
[1755152578928,0.68739394,121300.0,121290.0,0.32528]
[1755152579336,1.02949394,121300.0,121290.0,0.32528]
[1755152579527,1.02949394,121300.0,121290.0,0.19764]
[1755152579729,1.02949394,121300.0,121290.0,0.32528]
[1755152579866,1.02949104,121300.0,121290.0,0.32528]
[1755152580067,1.73249104,121300.0,121290.0,0.32528]
[1755152580588,1.72725104,121300.0,121290.0,0.32528]
[1755152580792,1.32403341,121300.0,121290.0,0.19764]
[1755152581262,1.32403341,121300.0,121290.0,0.32528]
[1755152581670,0.83795428,121300.0,121290.0,0.32528]
[1755152581840,1.32403341,121300.0,121290.0,0.19764]
[1755152582078,1.40851784,121300.0,121290.0,0.32528]
[1755152582296,1.41375784,121300.0,121290.0,0.19764]
[1755152582498,1.32603341,121300.0,121290.0,0.19764]
[1755152582917,1.32917341,121300.0,121290.0,0.19764]
[1755152583093,1.32603341,121300.0,121290.0,0.19764]
[1755152583546,1.32603341,121300.0,121290.0,0.32528]
[1755152584171,1.33127341,121300.0,121290.0,0.19764]
[1755152584383,1.89983697,121300.0,121290.0,0.19764]
[1755152584596,1.89983697,121300.0,121290.0,0.32528]
[1755152584817,1.41376402,121300.0,121290.0,0.19764]